lending/lending_fUSD_20241120
["ID","MTS","AMOUNT","RATE_DAILY","PERIOD"]
[342778916,1732140680080,-500.0,0.00055068,120]
[342778917,1732140680089,-163.746603,0.00055068,120]
[342778918,1732140680098,-500.0,0.00055068,120]
[342778919,1732140680107,-1031.65,0.00055068,120]
[342778920,1732140680115,-500.0,0.00055068,120]
[342778921,1732140680128,-151.0,0.00055068,30]
[342778922,1732140680140,-151.0,0.00055068,120]
[342778923,1732140680149,-163.746603,0.00055068,120]
[342778924,1732140680158,-532.59,0.00055068,120]
[342778925,1732140680167,-754.16,0.00055068,120]
[342778926,1732140680178,-500.0,0.00055068,120]
[342778927,1732140680187,-553.58,0.00055068,120]
[342778928,1732140680196,-500.0,0.00055068,120]
[342778929,1732140680206,-500.0,0.00055068,120]
[342778930,1732140680215,-334.55964859,0.00055068,120]
[342778931,1732140680224,-3918.3,0.00055068,120]
[342778932,1732140680234,-151.0,0.00055068,120]
[342778933,1732140680243,-500.0,0.00055068,120]
[342778934,1732140680251,-500.0,0.00055068,120]
[342778935,1732140680260,-687.41,0.00055068,120]
[342778936,1732140680270,-2233.29,0.00055068,120]
[342778937,1732140680279,-2901.67,0.00055068,120]
[342778938,1732140680287,-500.0,0.00055068,120]
[342778939,1732140680296,-151.195404,0.00055068,120]
[342778940,1732140680305,-1140.89,0.00055068,120]
[342778941,1732140680314,-1693.94,0.00055068,120]
[342778942,1732140680323,-743.27,0.00055068,120]
[342778943,1732140680332,-4798.42,0.00055068,120]
[342778944,1732140680341,-884.65,0.00055068,120]
[342778945,1732140680350,-500.0,0.00055068,120]
[342778946,1732140680359,-589.18,0.00055068,120]
[342778947,1732140680367,-500.0,0.00055068,120]
[342778948,1732140680377,-1609.97,0.00055068,120]
[342778949,1732140680386,-500.0,0.00055068,120]
[342778950,1732140680395,-842.19,0.00055068,120]
[342778951,1732140680404,-500.0,0.00055068,120]
[342778952,1732140680413,-500.0,0.00055068,120]
[342778953,1732140680424,-548.16,0.00055068,120]
[342778954,1732140680434,-4873.91,0.00055068,120]
[342778955,1732140680444,-1086.88,0.00055068,120]
[342778956,1732140680453,-500.0,0.00055068,120]
[342778957,1732140680461,-1158.88,0.00055068,120]
[342778958,1732140680471,-500.0,0.00055068,120]
[342778959,1732140680481,-7009.95,0.00055068,120]
[342778960,1732140680490,-725.57,0.00055068,120]
[342778961,1732140680500,-500.0,0.00055068,120]
[342778962,1732140680510,-500.0,0.00055068,120]
[342778963,1732140680519,-151.0,0.00055068,120]
[342778964,1732140680528,-500.0,0.00055068,120]
[342778965,1732140680537,-500.0,0.00055068,120]
[342778966,1732140680547,-2713.37,0.00055068,120]
[342778967,1732140680557,-2674.97,0.00055068,120]
[342778968,1732140680566,-1095.19,0.00055068,120]
[342778969,1732140680575,-500.0,0.00055068,120]
[342778970,1732140680585,-151.0,0.00055068,120]
[342778971,1732140680594,-3162.29,0.00055068,120]
[342778972,1732140680603,-500.0,0.00055068,120]
[342778973,1732140680613,-500.0,0.00055068,120]
[342778974,1732140680622,-500.0,0.00055068,120]
[342778975,1732140680631,-500.0,0.00055068,120]
[342778976,1732140680642,-500.0,0.00055068,120]
[342778977,1732140680651,-500.0,0.00055068,120]
[342778978,1732140680660,-5192.12,0.00055068,120]
[342778979,1732140680670,-6968.45,0.00055068,60]
[342778980,1732140680679,-500.0,0.00055068,120]
[342778981,1732140680689,-500.0,0.00055068,120]
[342778982,1732140680698,-500.0,0.00055068,120]
[342778983,1732140680707,-500.0,0.00055068,120]
[342778984,1732140680716,-500.0,0.00055068,120]
[342778985,1732140680725,-500.0,0.00055068,120]
[342778986,1732140680734,-788.84,0.00055068,120]
[342778987,1732140680743,-801.02,0.00055068,120]
[342778988,1732140680751,-1135.51,0.00055068,120]
[342778989,1732140680760,-500.0,0.00055068,120]
[342778990,1732140680769,-565.84,0.00055068,120]
[342778991,1732140680778,-500.0,0.00055068,120]
[342778992,1732140680787,-736.59,0.00055068,120]
[342778993,1732140680796,-778.41,0.00055068,120]
[342778994,1732140680805,-2123.81,0.00055068,120]
[342778995,1732140680814,-500.0,0.00055068,120]
[342778996,1732140680823,-1368.4,0.00055068,120]
[342778997,1732140680832,-1176.11,0.00055068,120]
[342778998,1732140680841,-500.0,0.00055068,120]
[342778999,1732140680850,-151.0,0.00055068,120]
[342779000,1732140680859,-500.0,0.00055068,120]
[342779001,1732140680869,-6444.84,0.00055068,120]
[342779002,1732140680878,-840.5,0.00055068,120]
[342779003,1732140680888,-566.17002027,0.00055068,120]
[342779004,1732140680897,-1149.75,0.00055068,120]
[342779005,1732140680906,-538.19,0.00055068,120]
[342779006,1732140680915,-500.0,0.00055068,120]
[342779007,1732140680924,-1918.75,0.00055068,120]
[342779008,1732140680933,-527.39,0.00055068,120]
[342779009,1732140680942,-500.0,0.00055068,120]
[342779010,1732140680951,-846.33,0.00055068,120]
[342779011,1732140680960,-924.66,0.00055068,120]
[342779012,1732140680969,-1437.44,0.00055068,120]
[342779013,1732140680978,-655.97,0.00055068,120]
[342779014,1732140680988,-613.35,0.00055068,120]
[342779015,1732140680997,-1217.61,0.00055068,120]
[342779016,1732140681007,-7358.45,0.00055068,120]
[342779017,1732140681016,-1149.18,0.00055068,120]
[342779018,1732140681025,-500.0,0.00055068,120]
[342779019,1732140681034,-1763.901637,0.00055068,120]
[342779020,1732140681044,-1147.11,0.00055068,120]
[342779021,1732140681053,-506.2678833,0.00055068,120]
[342779022,1732140681063,-500.0,0.00055068,120]
[342779023,1732140681072,-1974.94,0.00055068,120]
[342779024,1732140681081,-17457.35,0.00055068,120]
[342779025,1732140681090,-13034.59,0.00055068,120]
[342779026,1732140681100,-2237.64,0.00055068,120]
[342779027,1732140681110,-500.0,0.00055068,120]
[342779028,1732140681119,-1763.901637,0.00055068,120]
[342779029,1732140681134,-500.0,0.00055068,120]
[342779030,1732140681143,-2737.65,0.00055068,120]
[342779031,1732140681152,-551.05,0.00055068,120]
[342779032,1732140681162,-500.0,0.00055068,120]
[342779033,1732140681172,-500.31735534,0.00055068,120]
[342779034,1732140681182,-2479.1,0.00055068,120]
[342779035,1732140681191,-500.0,0.00055068,120]
[342779036,1732140681201,-500.0,0.00055068,120]
[342779037,1732140681211,-500.0,0.00055068,120]
[342779038,1732140681221,-3077.78,0.00055068,120]
[342779039,1732140681230,-500.0,0.00055068,120]
[342779040,1732140681240,-151.0,0.00055068,120]
[342779041,1732140681249,-4393.1,0.00055068,120]
[342779042,1732140681259,-535.35,0.00055068,120]
[342779043,1732140681269,-656.88,0.00055068,120]
[342779044,1732140681279,-1967.61,0.00055068,120]
[342779045,1732140681289,-500.0,0.00055068,120]
[342779046,1732140681298,-1550.26,0.00055068,120]
[342779047,1732140681308,-500.0,0.00055068,120]
[342779048,1732140681317,-500.0,0.00055068,120]
[342779049,1732140681327,-151.0,0.00055068,120]
[342779050,1732140681337,-725.78,0.00055068,120]
[342779051,1732140681347,-996.23,0.00055068,120]
[342779052,1732140681356,-5411.3,0.00055068,120]
[342779053,1732140681366,-500.0,0.00055068,120]
[342779054,1732140681376,-500.0,0.00055068,120]
[342779055,1732140681387,-559.06,0.00055068,120]
[342779056,1732140681397,-1127.77,0.00055068,120]
[342779057,1732140681407,-570.31,0.00055068,120]
[342779058,1732140681417,-500.0,0.00055068,120]
[342779059,1732140681427,-580.25,0.00055068,120]
[342779060,1732140681436,-7043.87,0.00055068,120]
[342779061,1732140681446,-500.0,0.00055068,120]
[342779062,1732140681455,-151.0,0.00055068,120]
[342779063,1732140681465,-500.0,0.00055068,120]
[342779064,1732140681475,-604.62,0.00055068,120]
[342779065,1732140681484,-8863.78,0.00055068,120]
[342779066,1732140681494,-500.0,0.00055068,120]
[342779067,1732140681504,-2040.5,0.00055068,120]
[342779068,1732140681514,-1500.0,0.00055068,120]
[342779069,1732140681523,-500.0,0.00055068,120]
[342779070,1732140681533,-500.0,0.00055068,120]
[342779071,1732140681543,-151.0,0.00055068,110]
[342779072,1732140681552,-2305.42,0.00055068,120]
[342779073,1732140681562,-500.0,0.00055068,120]
[342779074,1732140681572,-500.0,0.00055068,30]
[342779075,1732140681582,-1604.28,0.00055068,120]
[342779076,1732140681592,-536.82698701,0.00055068,120]
[342779077,1732140681602,-762.69,0.00055068,120]
[342779078,1732140681612,-500.0,0.00055068,120]
[342779079,1732140681622,-713.08,0.00055068,120]
[342779080,1732140681632,-500.0,0.00055068,120]
[342779081,1732140681644,-500.0,0.00055068,120]
[342779082,1732140681654,-500.0,0.00055068,120]
[342779083,1732140681664,-1101.03,0.00055068,120]
[342779084,1732140681674,-500.0,0.00055068,120]
[342779085,1732140681683,-500.0,0.00055068,120]
[342779086,1732140681692,-1320.75,0.00055068,120]
[342779087,1732140681702,-500.0,0.00055068,120]
[342779088,1732140681712,-1100.57,0.00055068,120]
[342779089,1732140681722,-151.0,0.00055068,120]
[342779090,1732140681732,-500.0,0.00055068,120]
[342779091,1732140681742,-500.0,0.00055068,120]
[342779092,1732140681751,-176.573386,0.00055068,120]
[342779093,1732140681760,-500.0,0.00055068,120]
[342779094,1732140681770,-5594.76,0.00055068,120]
[342779095,1732140681780,-500.0,0.00055068,120]
[342779096,1732140681790,-561.2,0.00055068,120]
[342779097,1732140681799,-500.0,0.00055068,120]
[342779098,1732140681810,-918.38,0.00055068,120]
[342779099,1732140681820,-500.0,0.00055068,120]
[342779100,1732140681829,-500.0,0.00055068,120]
[342779101,1732140681838,-500.0,0.00055068,120]
[342779102,1732140681848,-3670.68,0.00055068,120]
[342779103,1732140681859,-500.0,0.00055068,90]
[342779104,1732140681869,-176.573386,0.00055068,120]
[342779105,1732140681879,-500.0,0.00055068,30]
[342779106,1732140681889,-500.0,0.00055068,120]
[342779107,1732140681899,-151.0,0.00055068,120]
[342779108,1732140681908,-500.0,0.00055068,120]
[342779109,1732140681918,-4360.305673,0.00055068,120]
[342779110,1732140681928,-966.97,0.00055068,120]
[342779111,1732140681938,-5804.48,0.00055068,120]
[342779112,1732140681948,-250000.0,0.0005511,120]
[342779113,1732140681958,-250000.0,0.000552,120]
[342779114,1732140681968,-2335.45865019,0.00055294,120]
[342779115,1732140681979,-15452.59461759,0.000553,120]
[342779116,1732140681988,-600.0,0.00055318,40]
[342779117,1732140681997,-600.0,0.00055331,40]
[342779118,1732140682006,-500.0,0.00055342,7]
[342779119,1732140682017,-597.23,0.00055342,120]
[342779120,1732140682027,-500.0,0.00055342,120]
[342779121,1732140682037,-440.68553039,0.00055342,120]
[342779122,1732140682047,-151.0,0.00055342,7]
[342779123,1732140682058,-500.0,0.00055342,120]
[342779124,1732140682068,-500.0,0.00055342,120]
[342779125,1732140682078,-500.0,0.00055342,120]
[342779126,1732140682087,-500.0,0.00055342,120]
[342779127,1732140682097,-500.0,0.00055342,120]
[342779128,1732140682107,-500.0,0.00055342,120]
[342779129,1732140682116,-500.0,0.00055342,120]
[342779130,1732140682130,-500.0,0.00055342,120]
[342779131,1732140682141,-500.0,0.00055342,120]
[342779132,1732140682151,-500.0,0.00055342,120]
[342779133,1732140682160,-501.78406457,0.00055342,120]
[342779134,1732140682170,-500.0,0.00055342,120]
[342779135,1732140682181,-454.20839018,0.00055342,120]
[342779136,1732140682191,-500.0,0.00055342,120]
[342779137,1732140682202,-500.0,0.00055342,120]
[342779138,1732140682212,-500.0,0.00055342,120]
[342779139,1732140682221,-506.97038057,0.00055342,120]
[342779140,1732140682231,-500.0,0.00055342,120]
[342779141,1732140682241,-500.0,0.00055342,120]
[342779142,1732140682251,-500.0,0.00055342,120]
[342779143,1732140682260,-500.0,0.00055342,120]
[342779144,1732140682270,-500.0,0.00055342,120]
[342779145,1732140682279,-500.0,0.00055342,120]
[342779146,1732140682289,-500.0,0.00055342,120]
[342779147,1732140682299,-500.0,0.00055342,120]
[342779148,1732140682309,-543.9237834,0.00055342,120]
[342779149,1732140682322,-500.0,0.00055342,120]
[342779150,1732140682331,-210.928221,0.00055342,120]
[342779151,1732140682341,-260.413462,0.00055342,120]
[342779152,1732140682350,-155.055593,0.00055342,120]
[342779153,1732140682361,-500.0,0.00055342,120]
[342779154,1732140682371,-789.82,0.00055342,120]
[342779155,1732140682381,-907.52,0.00055342,120]
[342779156,1732140682391,-676.32,0.00055342,120]
[342779157,1732140682401,-500.0,0.00055342,120]
[342779158,1732140682412,-500.0,0.00055342,120]
[342779159,1732140682423,-690.77,0.00055342,120]
[342779160,1732140682433,-500.0,0.00055342,120]
[342779161,1732140682443,-500.0,0.00055342,120]
[342779162,1732140682454,-500.0,0.00055342,120]
[342779163,1732140682464,-500.0,0.00055342,120]
[342779164,1732140682474,-500.0,0.00055342,120]
[342779165,1732140682485,-501.76288725,0.00055342,120]
[342779166,1732140682495,-500.0,0.00055342,120]
[342779167,1732140682506,-337.64593977,0.00055342,120]
[342779168,1732140682516,-500.0,0.00055342,120]
[342779169,1732140682526,-500.0,0.00055342,120]
[342779170,1732140682537,-500.0,0.00055342,120]
[342779171,1732140682547,-500.0,0.00055342,120]
[342779172,1732140682558,-500.0,0.00055342,120]
[342779173,1732140682568,-500.0,0.00055342,120]
[342779174,1732140682578,-500.0,0.00055342,30]
[342779175,1732140682589,-500.0,0.00055342,120]
[342779176,1732140682599,-500.0,0.00055342,120]
[342779177,1732140682609,-500.0,0.00055342,120]
[342779178,1732140682620,-802.91,0.00055342,120]
[342779179,1732140682631,-500.0,0.00055342,120]
[342779180,1732140682644,-1078.99,0.00055342,120]
[342779181,1732140682657,-620.24513101,0.00055342,120]
[342779182,1732140682667,-500.0,0.00055342,120]
[342779183,1732140682677,-1196.86,0.00055342,120]
[342779184,1732140682687,-500.0,0.00055342,120]
[342779185,1732140682697,-1553.66,0.00055342,120]
[342779186,1732140682707,-500.0,0.00055342,120]
[342779187,1732140682717,-500.0,0.00055342,120]
[342779188,1732140682727,-181.67002001,0.00055342,120]
[342779189,1732140682737,-500.0,0.00055342,120]
[342779190,1732140682748,-1468.02,0.00055342,120]
[342779191,1732140682758,-500.0,0.00055342,120]
[342779192,1732140682768,-500.0,0.00055342,120]
[342779193,1732140682779,-500.0,0.00055342,120]
[342779194,1732140682789,-500.0,0.00055342,120]
[342779195,1732140682799,-500.0,0.00055342,120]
[342779196,1732140682808,-1204.33,0.00055342,120]
[342779197,1732140682818,-500.0,0.00055342,120]
[342779198,1732140682828,-689.54,0.00055342,120]
[342779199,1732140682837,-500.0,0.00055342,120]
[342779200,1732140682848,-500.0,0.00055342,120]
[342779201,1732140682859,-500.0,0.00055342,120]
[342779202,1732140682869,-500.0,0.00055342,120]
[342779203,1732140682879,-306.86670257,0.00055342,120]
[342779204,1732140682891,-500.0,0.00055342,120]
[342779205,1732140682901,-500.0,0.00055342,120]
[342779206,1732140682912,-500.0,0.00055342,120]
[342779207,1732140682923,-500.0,0.00055342,120]
[342779208,1732140682934,-500.0,0.00055342,120]
[342779209,1732140682945,-500.0,0.00055342,7]
[342779210,1732140682956,-500.0,0.00055342,120]
[342779211,1732140682967,-3362.7,0.00055342,120]
[342779212,1732140682977,-500.0,0.00055342,120]
[342779213,1732140682988,-500.0,0.00055342,120]
[342779214,1732140682999,-500.0,0.00055342,120]
[342779215,1732140683009,-500.0,0.00055342,120]
[342779216,1732140683019,-150.0,0.00055342,120]
[342779217,1732140683029,-2907.27,0.00055342,120]
[342779218,1732140683040,-1034.08,0.00055342,120]
[342779219,1732140683050,-500.0,0.00055342,120]
[342779220,1732140683060,-500.0,0.00055342,120]
[342779221,1732140683071,-500.0,0.00055342,120]
[342779222,1732140683082,-500.0,0.00055342,120]
[342779223,1732140683092,-502.45420809,0.00055342,120]
[342779224,1732140683102,-500.0,0.00055342,120]
[342779225,1732140683112,-500.0,0.00055342,120]
[342779226,1732140683122,-500.0,0.00055342,120]
[342779227,1732140683138,-5000.0,0.00055342,120]
[342779228,1732140683148,-500.0,0.00055342,120]
[342779229,1732140683158,-500.0,0.00055342,120]
[342779230,1732140683169,-1141.42,0.00055342,120]
[342779231,1732140683398,-577.45,0.00055342,120]
[342779232,1732140683431,-691.51,0.00055342,120]
[342779233,1732140683441,-500.0,0.00055342,120]
[342779234,1732140683451,-500.0,0.00055342,120]
[342779235,1732140683461,-1067.52,0.00055342,120]
[342779236,1732140683471,-500.0,0.00055342,120]
[342779237,1732140683481,-500.0,0.00055342,120]
[342779238,1732140683491,-1047.06,0.00055342,120]
[342779239,1732140683501,-500.0,0.00055342,120]
[342779240,1732140683511,-500.0,0.00055342,2]
[342779241,1732140683522,-1588.94,0.00055342,120]
[342779242,1732140683532,-500.0,0.00055342,120]
[342779243,1732140683542,-500.0,0.00055342,14]
[342779244,1732140683552,-500.0,0.00055342,120]
[342779245,1732140683562,-826.46,0.00055342,120]
[342779246,1732140683572,-503.29925165,0.00055342,120]
[342779247,1732140683582,-500.0,0.00055342,120]
[342779248,1732140683592,-630.9757273,0.00055342,120]
[342779249,1732140683603,-500.87572549,0.00055342,120]
[342779250,1732140683613,-500.0,0.00055342,120]
[342779251,1732140683623,-883.47,0.00055342,120]
[342779252,1732140683633,-500.0,0.00055342,120]
[342779253,1732140683645,-1125.72,0.00055342,120]
[342779254,1732140683655,-500.0,0.00055342,120]
[342779255,1732140683665,-500.0,0.00055342,120]
[342779256,1732140683675,-500.0,0.00055342,120]
[342779257,1732140683686,-500.0,0.00055342,120]
[342779258,1732140683696,-500.0,0.00055342,120]
[342779259,1732140683706,-1198.91,0.00055342,120]
[342779260,1732140683717,-1116.01,0.00055342,120]
[342779261,1732140683727,-500.0,0.00055342,120]
[342779262,1732140683737,-500.0,0.00055342,120]
[342779263,1732140683747,-500.0,0.00055342,120]
[342779264,1732140683756,-500.0,0.00055342,120]
[342779265,1732140683766,-500.0,0.00055342,120]
[342779266,1732140683775,-500.0,0.00055342,120]
[342779267,1732140683785,-229.80022758,0.00055342,120]
[342779268,1732140683794,-500.0,0.00055342,120]
[342779269,1732140683804,-1410.51,0.00055342,120]
[342779270,1732140683814,-500.0,0.00055342,120]
[342779271,1732140683824,-500.0,0.00055342,120]
[342779272,1732140683834,-500.0,0.00055342,120]
[342779273,1732140683845,-500.0,0.00055342,120]
[342779274,1732140683855,-508.72,0.00055342,120]
[342779275,1732140683864,-500.0,0.00055342,120]
[342779276,1732140683875,-500.0,0.00055342,120]
[342779277,1732140683885,-500.0,0.00055342,120]
[342779278,1732140683896,-501.02,0.00055342,120]
[342779279,1732140683906,-500.0,0.00055342,120]
[342779280,1732140683915,-500.0,0.00055342,120]
[342779281,1732140683925,-854.5,0.00055342,120]
[342779282,1732140683935,-500.0,0.00055342,120]
[342779283,1732140683945,-500.0,0.00055342,120]
[342779284,1732140683955,-500.0,0.00055342,120]
[342779285,1732140683965,-500.0,0.00055342,120]
[342779286,1732140683974,-923.86,0.00055342,120]
[342779287,1732140683984,-500.0,0.00055342,60]
[342779288,1732140683994,-1843.46,0.00055342,120]
[342779289,1732140684003,-810.6,0.00055342,120]
[342779290,1732140684014,-500.0,0.00055342,120]
[342779291,1732140684025,-191.37157962,0.00055342,120]
[342779292,1732140684035,-500.0,0.00055342,120]
[342779293,1732140684045,-500.0,0.00055342,120]
[342779294,1732140684055,-500.0,0.00055342,120]
[342779295,1732140684064,-909.22,0.00055342,120]
[342779296,1732140684074,-500.0,0.00055342,120]
[342779297,1732140684084,-501.48738697,0.00055342,120]
[342779298,1732140684093,-500.0,0.00055342,120]
[342779299,1732140684104,-500.0,0.00055342,120]
[342779300,1732140684114,-533.52,0.00055342,120]
[342779301,1732140684126,-500.0,0.00055342,120]
[342779302,1732140684140,-540.18381171,0.00055342,120]
[342779303,1732140684150,-500.0,0.00055342,120]
[342779304,1732140684160,-500.0,0.00055342,120]
[342779305,1732140684171,-2415.23,0.00055342,120]
[342779306,1732140684181,-180.61145303,0.00055342,120]
[342779307,1732140684191,-500.0,0.00055342,120]
[342779308,1732140684202,-972.8,0.00055342,120]
[342779309,1732140684212,-500.0,0.00055342,120]
[342779310,1732140684222,-1624.46,0.00055342,120]
[342779311,1732140684232,-500.0,0.00055342,120]
[342779312,1732140684242,-508.27762999,0.00055342,120]
[342779313,1732140684252,-500.0,0.00055342,120]
[342779314,1732140684261,-500.0,0.00055342,120]
[342779315,1732140684271,-530.46,0.00055342,120]
[342779316,1732140684281,-150.0,0.00055342,120]
[342779317,1732140684291,-500.0,0.00055342,120]
[342779318,1732140684301,-730.89,0.00055342,120]
[342779319,1732140684311,-500.0,0.00055342,60]
[342779320,1732140684321,-500.0,0.00055342,120]
[342779321,1732140684331,-500.0,0.00055342,120]
[342779322,1732140684341,-500.0,0.00055342,120]
[342779323,1732140684355,-500.0,0.00055342,120]
[342779324,1732140684366,-615.39,0.00055342,120]
[342779325,1732140684376,-1000.0,0.00055342,2]
[342779326,1732140684387,-500.0,0.00055342,120]
[342779327,1732140684397,-500.0,0.00055342,120]
[342779328,1732140684407,-500.0,0.00055342,120]
[342779329,1732140684417,-500.0,0.00055342,120]
[342779330,1732140684427,-515.66,0.00055342,120]
[342779331,1732140684437,-500.0,0.00055342,120]
[342779332,1732140684446,-783.6,0.00055342,120]
[342779333,1732140684456,-500.0,0.00055342,120]
[342779334,1732140684466,-1852.69,0.00055342,120]
[342779335,1732140684475,-713.08,0.00055342,120]
[342779336,1732140684485,-524.36,0.00055342,120]
[342779337,1732140684495,-500.0,0.00055342,120]
[342779338,1732140684504,-500.0,0.00055342,120]
[342779339,1732140684513,-500.0,0.00055342,120]
[342779340,1732140684523,-500.0,0.00055342,120]
[342779341,1732140684533,-500.0,0.00055342,120]
[342779342,1732140684542,-500.0,0.00055342,120]
[342779343,1732140684551,-500.0,0.00055342,120]
[342779344,1732140684561,-500.0,0.00055342,120]
[342779345,1732140684571,-729.05,0.00055342,120]
[342779346,1732140684581,-393.72454653,0.00055342,120]
[342779347,1732140684590,-500.0,0.00055342,120]
[342779348,1732140684600,-500.0,0.00055342,120]
[342779349,1732140684609,-2435.5,0.00055342,120]
[342779350,1732140684619,-500.0,0.00055342,120]
[342779351,1732140684628,-521.8,0.00055342,120]
[342779352,1732140684638,-642.48,0.00055342,120]
[342779353,1732140684648,-849.85,0.00055342,120]
[342779354,1732140684657,-627.45,0.00055342,120]
[342779355,1732140684667,-500.0,0.00055342,120]
[342779356,1732140684678,-742.62,0.00055342,120]
[342779357,1732140684687,-500.0,0.00055342,120]
[342779358,1732140684698,-858.26,0.00055342,120]
[342779359,1732140684708,-500.0,0.00055342,120]
[342779360,1732140684717,-500.0,0.00055342,120]
[342779361,1732140684726,-503.51,0.00055342,120]
[342779362,1732140684735,-500.0,0.00055342,120]
[342779363,1732140684745,-500.0,0.00055342,120]
[342779364,1732140684754,-2800.08,0.00055342,120]
[342779365,1732140684763,-500.0,0.00055342,120]
[342779366,1732140684773,-500.0,0.00055342,120]
[342779367,1732140684783,-500.0,0.00055342,120]
[342779368,1732140684792,-563.45,0.00055342,120]
[342779369,1732140684801,-500.0,0.00055342,120]
[342779370,1732140684810,-500.0,0.00055342,120]
[342779371,1732140684820,-500.0,0.00055342,120]
[342779372,1732140684829,-1104.08,0.00055342,120]
[342779373,1732140684839,-405.98485729,0.00055342,120]
[342779374,1732140684849,-500.0,0.00055342,120]
[342779375,1732140684858,-500.0,0.00055342,120]
[342779376,1732140684867,-500.0,0.00055342,120]
[342779377,1732140684876,-501.21467472,0.00055342,120]
[342779378,1732140684886,-1222.85,0.00055342,120]
[342779379,1732140684897,-500.0,0.00055342,120]
[342779380,1732140684907,-500.0,0.00055342,120]
[342779381,1732140684916,-500.0,0.00055342,120]
[342779382,1732140684926,-1021.61,0.00055342,120]
[342779383,1732140684935,-578.33,0.00055342,120]
[342779384,1732140684945,-500.0,0.00055342,120]
[342779385,1732140684955,-500.0,0.00055342,120]
[342779386,1732140684964,-1661.17,0.00055342,120]
[342779387,1732140684974,-500.0,0.00055342,120]
[342779388,1732140684983,-500.0,0.00055342,120]
[342779389,1732140684992,-500.0,0.00055342,120]
[342779390,1732140685002,-800.14,0.00055342,120]
[342779391,1732140685011,-500.0,0.00055342,120]
[342779392,1732140685021,-500.0,0.00055342,120]
[342779393,1732140685031,-500.0,0.00055342,120]
[342779394,1732140685041,-1090.19,0.00055342,120]
[342779395,1732140685051,-1054.3,0.00055342,120]
[342779396,1732140685061,-500.0,0.00055342,120]
[342779397,1732140685070,-1209.25,0.00055342,120]
[342779398,1732140685079,-500.0,0.00055342,120]
[342779399,1732140685089,-1127.18,0.00055342,120]
[342779400,1732140685098,-500.0,0.00055342,120]
[342779401,1732140685107,-500.0,0.00055342,120]
[342779402,1732140685117,-500.0,0.00055342,120]
[342779403,1732140685129,-500.0,0.00055342,120]
[342779404,1732140685138,-412.98028136,0.00055342,120]
[342779405,1732140685149,-500.0,0.00055342,120]
[342779406,1732140685158,-500.0,0.00055342,120]
[342779407,1732140685167,-500.0,0.00055342,120]
[342779408,1732140685177,-1267.34,0.00055342,120]
[342779409,1732140685187,-500.0,0.00055342,120]
[342779410,1732140685197,-2432.38,0.00055342,7]
[342779411,1732140685208,-500.0,0.00055342,120]
[342779412,1732140685218,-501.79508704,0.00055342,120]
[342779413,1732140685228,-500.0,0.00055342,120]
[342779414,1732140685240,-500.0,0.00055342,120]
[342779415,1732140685250,-1560.72,0.00055342,120]